bitfinex/quotes_BTCUSD_20260310
["timestamp","ask_amount","ask_price","bid_price","bid_amount"]
[1773159246558,0.11122782,71140.0,71118.0,0.12748296]
[1773159246702,0.21260847,71148.0,71120.0,1.253194]
[1773159246703,0.0003543,71148.0,71120.0,1.253194]
[1773159246908,0.0003543,71148.0,71121.0,0.03070565]
[1773159247157,0.16507507,71156.0,71120.0,3.19479]
[1773159247158,0.00144,71155.0,71132.0,0.2357397]
[1773159247360,0.00144,71155.0,71133.0,0.03214565]
[1773159247561,0.03,71155.0,71133.0,0.03214565]
[1773159247712,0.03144,71155.0,71133.0,0.03214565]
[1773159247906,0.03,71155.0,71134.0,1.350211]
[1773159248147,0.03,71155.0,71136.0,0.07028789]
[1773159248148,0.03144,71155.0,71136.0,0.07028789]
[1773159248335,0.00034277,71150.0,71136.0,0.07028789]
[1773159249568,0.03,71149.0,71136.0,0.07028789]
[1773159250404,0.03,71149.0,71135.0,0.07028789]
[1773159250704,0.03,71148.0,71135.0,0.07028789]
[1773159251286,1e-08,71150.0,71135.0,0.07028789]
[1773159251486,0.00562,71160.0,71136.0,0.03070565]
[1773159251784,0.00562,71160.0,71136.0,0.03081842]
[1773159252387,0.00562,71160.0,71141.0,0.03070565]
[1773159252686,0.00562,71160.0,71143.0,0.03070565]
[1773159253073,0.00562,71160.0,71144.0,0.11192]
[1773159253716,0.00562,71160.0,71143.0,0.03070565]
[1773159254682,0.00562,71160.0,71144.0,0.07027999]
[1773159256594,0.00582,71160.0,71145.0,0.00144]
[1773159256777,0.00582,71160.0,71146.0,0.07027801]
[1773159258212,0.00582,71160.0,71147.0,0.03070565]
[1773159258863,0.00582,71160.0,71148.0,0.07027604]
[1773159259078,0.00582,71160.0,71148.0,0.10098169]
[1773159259533,0.00582,71160.0,71148.0,0.07027604]
[1773159259740,0.00582,71160.0,71149.0,0.02670087]
[1773159260302,0.03582,71160.0,71149.0,0.02670087]
[1773159261122,0.03582,71160.0,71150.0,0.07027406]
[1773159261358,0.03,71159.0,71151.0,0.00144]
[1773159262346,0.00582,71160.0,71151.0,0.00144]
[1773159263161,0.00582,71160.0,71152.0,0.07027209]
[1773159265028,0.00582,71160.0,71153.0,0.00537209]
[1773159265229,0.00582,71160.0,71154.0,0.07027011]
[1773159265445,0.0003543,71167.0,71155.0,0.02670087]
[1773159265650,1e-08,71167.0,71155.0,0.02670087]
[1773159265852,0.03,71164.0,71139.0,0.07028295]
[1773159266061,0.03,71160.0,71140.0,0.00144]
[1773159266271,0.07025826,71166.0,71140.0,0.00144]
[1773159266272,0.03,71156.0,71140.0,0.00144]
[1773159266481,0.03,71156.0,71141.0,0.02670087]
[1773159266779,0.03,71156.0,71141.0,0.03229315]
[1773159267357,0.03,71156.0,71142.0,0.07028197]
[1773159267977,0.00144,71159.0,71144.0,0.02670087]
[1773159268153,0.00144,71163.0,71144.0,0.02670087]
[1773159269844,0.03,71161.0,71145.0,0.070279]
[1773159269985,0.03,71159.0,71146.0,0.00144]
[1773159271130,0.03,71158.0,71146.0,0.00144]
[1773159272155,0.03,71157.0,71147.0,0.07027703]
[1773159273271,0.03,71156.0,71147.0,0.07027703]
[1773159274361,0.03,71161.0,71147.0,0.07027703]
[1773159275738,0.03,71160.0,71147.0,0.07027703]
[1773159276581,0.03,71159.0,71147.0,0.07027703]
[1773159276782,0.03,71159.0,71148.0,0.00144]
[1773159277577,0.0002,71157.0,71148.0,0.00144]
[1773159278363,0.16507507,71182.0,71149.0,0.02670087]
[1773159278570,0.00562,71188.0,71152.0,0.02670087]
[1773159278571,0.03,71173.0,71152.0,0.02670087]
[1773159278772,0.03,71171.0,71154.0,0.02670087]
[1773159278976,0.03,71169.0,71155.0,0.00144]
[1773159279518,0.03,71169.0,71155.0,0.02814087]
[1773159280839,0.03,71169.0,71157.0,0.02670087]
[1773159282118,0.00023,71175.0,71157.0,0.02670087]
[1773159282340,0.07048034,71175.0,71161.0,0.02670087]
[1773159282548,0.03,71174.0,71162.0,0.00144]
[1773159283083,0.03,71174.0,71163.0,0.07026123]
[1773159283733,0.05109771,71173.0,71163.0,0.07026123]
[1773159283972,0.03,71167.0,71148.0,0.07027604]
[1773159284155,0.07025135,71173.0,71148.0,0.07027604]
[1773159284156,0.02109771,71162.0,71148.0,0.07027604]
[1773159284363,0.03,71161.0,71149.0,0.00144]
[1773159284765,0.03,71161.0,71150.0,0.00144]
[1773159285147,0.03,71161.0,71151.0,0.07027308]
[1773159287497,0.03,71161.0,71151.0,0.00144]
[1773159288027,0.03,71160.0,71149.0,0.07027308]
[1773159288222,0.05015857,71160.0,71150.0,0.00144]
[1773159288625,0.05015857,71160.0,71149.0,0.07027308]
[1773159288831,0.05015857,71160.0,71150.0,0.00144]
[1773159289544,0.05015857,71160.0,71151.0,0.07027308]
[1773159290802,0.03,71162.0,71151.0,0.07027308]
[1773159291352,0.10026238,71162.0,71151.0,0.07027308]
[1773159291555,0.0002,71161.0,71151.0,0.07027308]
[1773159293575,0.03,71160.0,71149.0,0.07027308]
[1773159293782,0.03,71156.0,71142.0,0.07028104]
[1773159293995,0.00144,71159.0,71119.0,0.51459664]
[1773159293996,0.03,71152.0,71137.0,0.07028691]
[1773159294300,0.03,71150.0,71137.0,0.07028691]
[1773159294557,0.00144,71149.0,71137.0,0.07028691]
[1773159294886,0.00144,71148.0,71137.0,0.07028691]
[1773159295089,0.00144,71148.0,71137.0,0.07039968]
[1773159295677,0.00144,71148.0,71135.0,0.06376597]
[1773159295884,0.00155268,71148.0,71137.0,0.07028691]
[1773159296399,0.00144,71173.0,71142.0,0.0213678]
[1773159296599,0.00144,71173.0,71146.0,0.761513]
[1773159296806,0.02297033,71173.0,71148.0,0.0213678]
[1773159297021,0.02297033,71173.0,71150.0,0.0213678]
[1773159297211,0.02297033,71173.0,71147.0,0.00144]
[1773159297212,0.02297033,71173.0,71152.0,0.0213678]
[1773159297427,0.03,71172.0,71154.0,0.0213678]
[1773159297833,0.03,71172.0,71156.0,0.0213678]
[1773159298494,0.03023,71175.0,71156.0,0.0213678]
[1773159298706,0.03023,71175.0,71158.0,0.0213678]
[1773159298876,0.03023,71175.0,71160.0,0.0213678]
[1773159299325,0.00144,71176.0,71160.0,0.0213678]
[1773159299726,0.03,71177.0,71160.0,0.0213678]
[1773159299910,0.1002478,71177.0,71162.0,0.0213678]
[1773159300680,0.03,71175.0,71161.0,0.0702632]
[1773159300881,0.0702478,71177.0,71161.0,0.0702632]
[1773159300882,0.03,71173.0,71162.0,0.00144]
[1773159301150,0.03,71173.0,71162.0,0.0228078]
[1773159301703,0.03,71173.0,71162.0,0.00144]
[1773159301907,0.03,71173.0,71163.0,0.07026123]
[1773159302088,0.05153033,71173.0,71163.0,0.07026123]
[1773159302740,0.03,71173.0,71164.0,0.0213678]
[1773159302994,0.03,71178.0,71164.0,0.0213678]
[1773159303200,0.05153033,71178.0,71164.0,0.0213678]
[1773159303404,0.03,71176.0,71163.0,0.07026123]
[1773159303616,0.03,71174.0,71163.0,0.07026123]
[1773159303831,0.03,71174.0,71165.0,0.07025925]
[1773159304484,0.03,71174.0,71159.0,0.07026123]
[1773159304485,0.03,71172.0,71157.0,0.07026715]
[1773159304629,0.03,71166.0,71151.0,0.00144]
[1773159304834,0.03,71166.0,71150.0,0.07050334]
[1773159304835,0.00144,71172.0,71153.0,0.0213678]
[1773159305047,0.00144,71171.0,71155.0,0.0213678]
[1773159305254,0.00144,71175.0,71171.0,0.00048]
[1773159305462,0.02153033,71174.0,71171.0,0.00048]
[1773159305700,0.00144,71175.0,71171.0,0.00048]
[1773159305892,0.03,71178.0,71172.0,0.07025234]
[1773159306482,0.03011275,71178.0,71172.0,0.07025234]
[1773159306683,0.03011275,71178.0,71171.0,0.07073234]
[1773159306924,0.00011275,71178.0,71171.0,0.07073234]
[1773159307341,0.05153033,71176.0,71171.0,0.00048]
[1773159307744,0.03,71176.0,71171.0,0.07073299]
[1773159307945,0.03,71176.0,71173.0,0.07025135]
[1773159308287,0.00144,71182.0,71173.0,0.07025135]
[1773159308499,0.00037567,71182.0,71174.0,0.0213678]
[1773159308613,0.00037567,71182.0,71173.0,0.07025135]
[1773159308821,0.00037567,71182.0,71174.0,0.00144]
[1773159309828,0.00037567,71182.0,71175.0,0.07024938]
[1773159310275,0.0002,71178.0,71175.0,0.07024938]
[1773159310531,0.11136169,71210.0,71176.0,0.0213678]
[1773159310730,0.02188373,71203.0,71178.0,0.0213678]
[1773159310874,0.00034264,71200.0,71178.0,0.0213678]
[1773159311081,0.00034264,71200.0,71179.0,1.231845]
[1773159311295,0.00034264,71200.0,71175.0,0.07024938]
[1773159311296,0.00034264,71200.0,71183.0,0.603619]
[1773159311504,0.00034264,71200.0,71186.0,0.0213678]
[1773159311659,0.00034264,71200.0,71188.0,0.0213678]
[1773159311859,0.00034264,71200.0,71192.0,0.0213678]
[1773159312061,0.0003534,71203.0,71192.0,0.0213678]
[1773159312364,0.00144,71215.0,71194.0,0.0213678]
[1773159312564,0.02297033,71215.0,71194.0,0.0213678]
[1773159312788,0.03,71214.0,71195.0,0.0228078]
[1773159313587,0.03,71210.0,71196.0,0.00144]
[1773159313812,0.03,71206.0,71196.0,0.00144]
[1773159314039,0.03,71206.0,71195.0,0.0213678]
[1773159314232,0.0702113,71214.0,71195.0,0.0213678]
[1773159314396,0.09735967,71216.0,71195.0,0.0213678]
[1773159314595,0.00144,71215.0,71195.0,0.0213678]
[1773159314809,0.03144,71215.0,71195.0,0.0213678]
[1773159315537,0.03,71213.0,71195.0,0.0213678]
[1773159316096,0.03,71213.0,71196.0,0.07022866]
[1773159316296,0.03,71213.0,71197.0,0.0213678]
[1773159317295,0.05153033,71213.0,71197.0,0.0213678]
[1773159318336,0.0002,71214.0,71199.0,0.0213678]
[1773159318534,0.0002,71214.0,71201.0,0.0213678]
[1773159319847,0.03,71213.0,71200.0,0.00144]
[1773159320555,0.0002,71214.0,71201.0,0.07022373]
[1773159320773,0.0002,71214.0,71202.0,0.02397528]
[1773159320956,0.07041128,71214.0,71202.0,0.02397528]
[1773159321114,0.07041128,71214.0,71201.0,0.07022373]
[1773159321317,0.09287204,71214.0,71201.0,0.07022373]
[1773159322819,0.02240177,71213.0,71192.0,0.00011264]
[1773159323021,0.02240177,71213.0,71192.0,0.07034465]
[1773159323378,0.07041128,71214.0,71193.0,0.00773605]
[1773159323581,0.07041128,71214.0,71194.0,0.02397528]
[1773159323582,0.00144,71213.0,71194.0,0.02397528]
[1773159323744,0.0302,71214.0,71196.0,0.02397528]
[1773159323976,0.00144,71213.0,71198.0,0.02397528]
[1773159324175,0.00244,71213.0,71198.0,0.02397528]
[1773159324421,0.00144,71213.0,71198.0,0.02397528]
[1773159324823,0.03,71212.0,71199.0,0.0702257]
[1773159325364,0.03,71212.0,71201.0,0.02397528]
[1773159325565,0.0002,71214.0,71201.0,0.02397528]
[1773159325566,0.07041093,71214.0,71203.0,0.02397528]
[1773159325769,0.0002,71214.0,71203.0,0.02397528]
[1773159326379,0.09290448,71242.0,71205.0,1.496136]
[1773159326585,0.07053671,71243.0,71201.0,0.00144]
[1773159326586,0.0003534,71243.0,71209.0,2.654018]
[1773159326944,0.0003534,71243.0,71215.0,0.02397528]
[1773159327091,0.0003534,71243.0,71218.0,0.911682]
[1773159327301,0.0003534,71243.0,71221.0,0.22222075]
[1773159327483,0.0003534,71243.0,71224.0,0.02397528]
[1773159327673,0.0003534,71243.0,71226.0,0.02397528]
[1773159327876,0.00562,71244.0,71226.0,0.02397528]
[1773159328113,0.030252,71243.0,71226.0,0.02397528]
[1773159328312,0.02272117,71247.0,71226.0,0.02397528]
[1773159328473,0.00023,71250.0,71226.0,0.02397528]
[1773159328474,0.07161796,71248.0,71226.0,0.02408794]
[1773159328906,0.07161796,71248.0,71227.0,0.07019809]
[1773159329106,0.03,71247.0,71228.0,0.02397528]
[1773159330353,0.00023,71250.0,71228.0,0.02397528]
[1773159330763,0.00023,71250.0,71228.0,0.02305157]
[1773159331331,0.00023,71250.0,71230.0,0.02397528]
[1773159331522,0.00023,71250.0,71232.0,0.02397528]
[1773159333172,0.03023,71250.0,71232.0,0.02397528]
[1773159333370,0.03023,71250.0,71234.0,0.02397528]
[1773159333783,0.03023,71250.0,71235.0,0.00144]
[1773159334090,0.02272117,71241.0,71222.0,0.07020242]
[1773159334287,0.03,71234.0,71225.0,0.07019988]
[1773159334510,0.03,71234.0,71222.0,0.00144]
[1773159334701,0.03,71234.0,71216.0,0.01120339]
[1773159334702,0.03,71228.0,71217.0,0.07020598]
[1773159334916,0.00011253,71234.0,71218.0,0.00144]
[1773159335067,0.00085755,71233.0,71218.0,0.00144]
[1773159335276,0.00011253,71234.0,71222.0,0.00048]
[1773159335465,0.00011253,71234.0,71223.0,0.07020204]
[1773159335676,0.03011253,71234.0,71221.0,0.07020204]
[1773159335878,0.03011253,71234.0,71203.0,0.07022176]
[1773159335879,0.00081529,71233.0,71203.0,0.07022176]
[1773159336088,0.00081529,71233.0,71204.0,0.00144]
[1773159336690,0.00081529,71233.0,71205.0,0.02397528]
[1773159337181,0.00088091,71232.0,71206.0,0.00144]
[1773159337676,0.00162052,71229.0,71207.0,0.07021781]
[1773159337878,0.03,71230.0,71200.0,0.07045463]
[1773159337879,0.00162052,71227.0,71200.0,0.07045463]
[1773159338275,0.00162052,71227.0,71201.0,0.02397528]
[1773159339703,0.03,71225.0,71202.0,0.07022274]
[1773159339906,0.00152747,71224.0,71203.0,0.02397528]
[1773159340103,0.00152747,71224.0,71203.0,0.02541528]
[1773159342115,0.07020204,71223.0,71204.0,0.07022077]
[1773159342320,0.03174008,71222.0,71204.0,0.09419605]
[1773159342524,0.03,71222.0,71204.0,0.09419605]
[1773159342751,0.00184264,71221.0,71204.0,0.09419605]
[1773159342907,0.00144,71220.0,71204.0,0.09419605]
[1773159343315,0.00144,71220.0,71205.0,0.02397528]
[1773159343927,0.00338275,71220.0,71205.0,0.02397528]
[1773159344157,0.00338275,71220.0,71200.0,0.00023]
[1773159344158,0.00194275,71217.0,71197.0,0.00022]
[1773159344329,0.00194275,71217.0,71197.0,0.07044741]
[1773159344540,0.03,71218.0,71199.0,0.22222075]
[1773159344758,0.03,71218.0,71200.0,0.02397528]
[1773159344958,0.03,71218.0,71202.0,0.02397528]
[1773159345161,0.03,71219.0,71204.0,0.02397528]
[1773159345340,0.03,71219.0,71206.0,0.02397528]
[1773159346340,0.04551691,71248.0,71208.0,0.02397528]
[1773159346556,0.07724198,71244.0,71212.0,1.772189]
[1773159346779,0.07580198,71244.0,71216.0,0.706786]
[1773159346950,0.07580198,71244.0,71219.0,0.02381344]
[1773159347374,0.07580198,71244.0,71220.0,0.214561]
[1773159347585,0.00562,71244.0,71221.0,0.02381344]
[1773159348250,0.07580145,71244.0,71222.0,0.07020302]
[1773159348486,0.00562,71244.0,71223.0,0.02381344]
[1773159348660,0.00562,71244.0,71225.0,0.02381344]
[1773159349090,0.07580182,71244.0,71225.0,0.02381344]
[1773159349290,0.00562,71244.0,71225.0,0.02381344]
[1773159350424,0.00562,71244.0,71227.0,0.02371196]
[1773159350742,0.00144,71252.0,71227.0,0.02371196]
[1773159350956,0.00043,71250.0,71227.0,0.02371196]
[1773159351606,0.07060616,71250.0,71227.0,0.02371196]
[1773159352001,0.00043,71250.0,71227.0,0.02371196]
[1773159352257,0.07060544,71250.0,71227.0,0.02371196]
[1773159352641,0.07060544,71250.0,71228.0,0.07019711]
[1773159352843,0.07060544,71250.0,71229.0,0.02371196]
[1773159353023,0.07060544,71250.0,71231.0,0.02371196]
[1773159353228,0.07060544,71250.0,71232.0,0.00144]
[1773159353433,0.07060544,71250.0,71233.0,0.02371196]
[1773159353631,0.00043,71250.0,71233.0,0.02371196]
[1773159355078,0.00043,71250.0,71235.0,0.02371196]
[1773159356397,0.07577476,71272.0,71235.0,0.02371196]
[1773159356697,0.04214616,71279.0,71234.0,0.0701912]
[1773159356698,0.07051128,71294.0,71250.0,0.00023]
[1773159357013,0.07013508,71291.0,71254.0,0.07017149]
[1773159357219,0.00037847,71290.0,71255.0,0.02685774]
[1773159357418,0.0004418,71289.0,71255.0,0.02541774]
[1773159357616,0.0004418,71287.0,71256.0,0.00144]
[1773159357814,0.0004418,71287.0,71257.0,0.00144]
[1773159358027,0.0004418,71287.0,71256.0,0.00144]
[1773159358690,0.0004418,71287.0,71257.0,0.02541774]
[1773159359088,0.03,71285.0,71258.0,0.07016756]
[1773159359289,0.0006,71284.0,71258.0,0.0955853]
[1773159359987,0.0006,71284.0,71259.0,0.00144]
[1773159360395,0.0006,71284.0,71259.0,0.02685774]
[1773159360971,0.00144,71283.0,71261.0,0.02541774]
[1773159361175,0.03,71281.0,71264.0,0.07016165]
[1773159361374,0.03,71281.0,71265.0,0.02685774]
[1773159361576,0.03,71281.0,71266.0,0.257598]
[1773159361822,0.03,71281.0,71267.0,0.02541774]
[1773159362239,0.0701431,71283.0,71264.0,0.07016165]
[1773159362240,0.03,71280.0,71268.0,0.00144]
[1773159363275,0.0701431,71283.0,71269.0,0.07015673]
[1773159363276,0.03,71278.0,71269.0,0.07015673]
[1773159363498,0.05014133,71285.0,71270.0,0.02541774]
[1773159363892,0.07157939,71287.0,71270.0,0.00144]
[1773159364125,0.07157939,71287.0,71271.0,0.02294767]
[1773159364349,0.03,71286.0,71271.0,0.02294767]
[1773159365322,0.03,71286.0,71273.0,0.00048]
[1773159365639,0.03,71284.0,71274.0,0.0701518]
[1773159365861,0.03,71280.0,71258.0,0.07016657]
[1773159366148,0.05449288,71276.0,71259.0,0.00144]
[1773159366348,0.05449288,71276.0,71260.0,0.00144]
[1773159366503,0.03,71274.0,71258.0,0.07016657]
[1773159366704,0.00144,71279.0,71254.0,0.07017082]
[1773159366705,0.03,71272.0,71254.0,0.07017082]
[1773159366904,0.00144,71271.0,71254.0,0.07017082]
[1773159367347,0.00144,71270.0,71254.0,0.07017082]
[1773159367556,0.03,71268.0,71254.0,0.07017082]
[1773159368002,0.03011255,71268.0,71254.0,0.07017082]
[1773159368203,0.03011255,71268.0,71267.0,0.00022]
[1773159368827,0.03011255,71268.0,71254.0,0.07017082]
[1773159369038,0.03011255,71268.0,71195.0,0.41823516]
[1773159369039,0.03011255,71268.0,71249.0,0.07017641]
[1773159369259,0.05449288,71266.0,71250.0,0.07040484]
[1773159369443,0.03,71264.0,71251.0,0.00144]
[1773159369836,0.03,71262.0,71252.0,0.00144]
[1773159370144,0.03,71262.0,71250.0,0.07040484]
[1773159370346,0.03,71262.0,71250.0,0.09479251]
[1773159370752,0.03,71261.0,71250.0,0.09335251]
[1773159370953,0.03,71261.0,71251.0,0.00144]
[1773159371175,0.07160093,71265.0,71251.0,0.00144]
[1773159371374,0.07027026,71268.0,71251.0,0.00144]
[1773159371528,0.07171026,71268.0,71251.0,0.00144]
[1773159371734,0.07171026,71268.0,71252.0,0.07017346]
[1773159371959,0.03,71267.0,71252.0,0.07017346]
[1773159372540,0.03,71267.0,71253.0,0.02294767]
[1773159372913,0.03,71267.0,71252.0,0.07017346]
[1773159373093,0.07171026,71268.0,71251.0,0.00144]
[1773159373094,0.03,71263.0,71251.0,0.00144]
[1773159373292,0.07171026,71268.0,71244.0,0.00562]
[1773159373293,0.03,71257.0,71244.0,0.00562]
[1773159373497,0.05449288,71255.0,71244.0,0.00562]
[1773159373698,0.05593288,71255.0,71244.0,0.00562]
[1773159373901,0.03,71253.0,71244.0,0.00562]
[1773159374458,0.03,71253.0,71235.0,0.07018989]
[1773159374670,0.03,71253.0,71225.0,0.0006109]
[1773159374671,0.03,71249.0,71229.0,0.00022]
[1773159374945,0.05449288,71245.0,71230.0,0.00144]
[1773159375144,0.05449288,71245.0,71229.0,0.07041605]
[1773159375145,0.03,71245.0,71229.0,0.09722587]
[1773159375370,0.03,71245.0,71231.0,0.00144]
[1773159375543,0.03,71245.0,71230.0,0.00144]
[1773159375946,0.03,71244.0,71231.0,0.00144]
[1773159376147,0.03,71244.0,71231.0,0.0018153]
[1773159377243,0.09467324,71245.0,71231.0,0.0018153]
[1773159377450,0.02449288,71244.0,71231.0,0.0018153]
[1773159377682,0.07018036,71245.0,71232.0,0.02294767]
[1773159377897,0.10018042,71245.0,71233.0,0.07019218]
[1773159378314,0.10018042,71245.0,71232.0,0.07019218]
[1773159378735,0.07017878,71247.0,71232.0,0.07163218]
[1773159378736,0.07018036,71247.0,71232.0,0.07163218]
[1773159379057,0.07018036,71247.0,71225.0,0.0040168]
[1773159379058,0.03,71244.0,71225.0,0.0006109]
[1773159379204,0.07018036,71247.0,71225.0,0.00011253]
[1773159379205,0.03,71238.0,71225.0,0.00011253]
[1773159379415,0.05554498,71236.0,71225.0,0.00011253]
[1773159379617,0.00144,71235.0,71225.0,0.00011253]
[1773159380019,0.03,71233.0,71225.0,0.00011253]
[1773159381957,0.031,71233.0,71225.0,0.00011253]
[1773159382154,0.10019415,71231.0,71225.0,0.00011253]
[1773159383692,0.03,71230.0,71225.0,0.00011253]
[1773159384242,0.07019184,71234.0,71225.0,0.00011253]
[1773159384491,0.00144,71235.0,71225.0,0.00033253]
[1773159384666,0.03,71234.0,71225.0,0.00033253]
[1773159385072,0.00144,71233.0,71225.0,0.00033253]
[1773159385832,0.07017039,71256.0,71225.0,0.00033253]
[1773159385833,0.02554498,71268.0,71229.0,0.02542892]
[1773159386008,0.02554498,71268.0,71226.0,0.21717507]
[1773159386009,0.00144,71266.0,71233.0,0.02542892]
[1773159386219,0.00144,71266.0,71236.0,0.02542892]
[1773159386420,0.07015476,71271.0,71240.0,0.02542892]
[1773159386573,0.00144,71267.0,71243.0,1.462021]
[1773159386773,0.03,71270.0,71246.0,0.02542892]
[1773159386994,0.03,71270.0,71247.0,0.451217]
[1773159387173,0.03,71270.0,71250.0,0.02542892]
[1773159387368,0.03,71270.0,71252.0,0.02542892]
[1773159387719,0.03,71269.0,71254.0,0.02542892]
[1773159388127,0.00037553,71269.0,71255.0,0.07017051]
[1773159388411,0.00037553,71269.0,71256.0,0.02542892]
[1773159389191,0.00037553,71269.0,71257.0,0.00144]
[1773159390072,0.00037553,71269.0,71258.0,0.02542892]
[1773159390291,0.07014203,71284.0,71259.0,0.07016657]
[1773159390584,0.00051329,71281.0,71261.0,0.02542892]
[1773159390899,0.02554498,71292.0,71261.0,0.02542892]
[1773159390900,0.07013508,71292.0,71261.0,0.02542892]
[1773159391099,0.07013508,71292.0,71261.0,0.02580445]
[1773159391271,0.07013409,71294.0,71261.0,0.02580445]
[1773159391471,0.00144,71293.0,71261.0,0.02562851]
[1773159391950,0.03144,71293.0,71261.0,0.02662851]
[1773159392325,0.03,71291.0,71263.0,0.02542892]
[1773159392528,0.03,71291.0,71265.0,0.02542892]
[1773159392745,0.00144,71298.0,71267.0,0.02542892]
[1773159392971,0.00144,71298.0,71269.0,0.02542892]
[1773159393177,0.00144,71298.0,71272.0,1.73447]
[1773159393379,0.00144,71298.0,71275.0,0.02542892]
[1773159393611,0.00144,71298.0,71277.0,0.02542892]
[1773159393856,0.00144,71298.0,71279.0,0.02542892]
[1773159394070,0.12436185,71309.0,71262.0,0.07016362]
[1773159394071,0.00144,71307.0,71283.0,0.02542892]
[1773159394224,0.00144,71307.0,71288.0,0.02542892]
[1773159394425,0.03144,71307.0,71288.0,0.02542892]
[1773159395171,0.03,71307.0,71288.0,0.02542892]
[1773159395383,0.0001125,71307.0,71288.0,0.02542892]
[1773159396457,0.10010801,71319.0,71290.0,0.474042]
[1773159396665,0.10010801,71319.0,71291.0,0.02686892]
[1773159396666,0.00144,71315.0,71291.0,0.02686892]
[1773159397016,0.00144,71317.0,71291.0,0.02686892]
[1773159397546,0.00144,71318.0,71291.0,0.02686892]
[1773159397960,0.03,71319.0,71291.0,0.02686892]
[1773159398286,0.03,71319.0,71292.0,0.07013409]
[1773159398461,0.10154793,71319.0,71293.0,0.02542892]
[1773159398683,0.03,71318.0,71293.0,0.02542892]
[1773159398968,0.00144,71320.0,71295.0,0.02542892]
[1773159399177,0.07010754,71319.0,71298.0,0.287914]
[1773159399328,0.00144,71320.0,71299.0,0.02686892]
[1773159399528,0.00144,71320.0,71301.0,0.02542892]
[1773159399732,0.00144,71320.0,71302.0,0.02542892]
[1773159399939,0.00144,71320.0,71303.0,0.00144]
[1773159400134,0.0002,71318.0,71303.0,0.00144]
[1773159400342,0.02554498,71317.0,71301.0,0.06976256]
[1773159400551,0.02554498,71317.0,71292.0,0.07013409]
[1773159400552,0.02554498,71311.0,71293.0,0.07113311]
[1773159400747,0.07030926,71318.0,71293.0,0.07013311]
[1773159400748,0.03,71310.0,71293.0,0.07013311]
[1773159400951,0.03,71308.0,71293.0,0.07013311]
[1773159401179,0.00144,71313.0,71290.0,0.0001125]
[1773159401180,0.03,71306.0,71290.0,0.0001125]
[1773159401348,0.07030926,71318.0,71270.0,0.07015515]
[1773159401349,0.03,71300.0,71287.0,0.0701389]
[1773159402309,0.03696251,71302.0,71288.0,0.00144]
[1773159402834,0.07011246,71314.0,71289.0,0.02542892]
[1773159402985,0.00144,71313.0,71289.0,0.02542892]
[1773159403187,0.00144,71312.0,71289.0,0.02542892]
[1773159403514,0.03,71308.0,71288.0,0.00144]
[1773159403715,0.05554498,71308.0,71289.0,0.00144]
[1773159403920,0.03,71306.0,71290.0,0.00144]
[1773159404093,0.07022492,71314.0,71290.0,0.00144]
[1773159404094,0.03,71304.0,71290.0,0.00144]
[1773159404273,0.03,71300.0,71288.0,0.07013803]
[1773159405045,0.03,71300.0,71284.0,0.02542892]
[1773159405046,0.03,71298.0,71277.0,0.07014885]
[1773159405203,0.03,71298.0,71281.0,0.00144]
[1773159405619,0.03,71298.0,71284.0,0.05]
[1773159406190,0.00144,71300.0,71284.0,0.05]
[1773159406191,0.03144,71300.0,71284.0,0.05]
[1773159406397,0.07012524,71301.0,71286.0,0.02542892]
[1773159406398,0.03,71298.0,71286.0,0.02542892]
[1773159406607,0.03,71298.0,71285.0,0.07014098]
[1773159406608,0.03,71298.0,71287.0,0.00077769]
[1773159406847,0.07011538,71312.0,71288.0,0.02686892]
[1773159407056,0.07011538,71312.0,71290.0,0.02455139]
[1773159407057,0.00144,71311.0,71290.0,0.02455139]
[1773159407289,0.0702259,71314.0,71289.0,0.02455139]
[1773159407290,0.00011246,71314.0,71289.0,0.02455139]
[1773159407493,0.00011246,71314.0,71291.0,1.464535]
[1773159407778,0.00011246,71314.0,71288.0,0.00144]
[1773159407779,0.00011246,71314.0,71296.0,0.02455139]
[1773159407981,0.00011246,71314.0,71298.0,0.02455139]
[1773159408560,0.00011246,71314.0,71300.0,0.02455139]
[1773159410558,0.00011246,71314.0,71301.0,0.07012524]
[1773159410967,0.00011246,71314.0,71302.0,0.00144]
[1773159411593,0.00011246,71314.0,71303.0,0.0230238]
[1773159411885,0.03011246,71314.0,71303.0,0.0230238]
[1773159412309,0.03011246,71314.0,71303.0,0.02294708]
[1773159412762,0.03011246,71314.0,71304.0,0.07156229]
[1773159412992,0.0002,71318.0,71304.0,0.07156229]
[1773159413234,0.0002,71318.0,71304.0,0.07167475]
[1773159413450,0.0302,71318.0,71305.0,0.0230238]
[1773159413646,0.0302,71318.0,71305.0,0.02294708]
[1773159414369,0.03,71317.0,71306.0,0.00144]
[1773159414814,0.03,71317.0,71307.0,0.07011934]
[1773159415521,0.0002,71318.0,71307.0,0.07011934]
[1773159417401,0.0302,71318.0,71307.0,0.07011934]
[1773159418006,0.10030859,71318.0,71306.0,0.07155971]
[1773159418248,0.0302,71318.0,71306.0,0.07011971]
[1773159418426,0.03,71317.0,71307.0,0.0230238]
[1773159418973,0.03,71317.0,71308.0,0.07011835]
[1773159419116,0.03,71317.0,71304.0,0.00011246]
[1773159419117,0.03,71313.0,71304.0,0.00011246]
[1773159419318,0.07030951,71318.0,71296.0,0.0230238]
[1773159419319,0.0002,71318.0,71296.0,0.0230238]
[1773159419544,0.00031246,71318.0,71298.0,0.0230238]
[1773159419750,0.00031246,71318.0,71300.0,0.0230238]
[1773159419945,0.00031246,71318.0,71302.0,0.0230238]
[1773159420188,0.00031246,71318.0,71304.0,0.0230238]
[1773159420343,0.00031246,71318.0,71305.0,0.00144]
[1773159420761,1e-08,71318.0,71306.0,0.00361743]
[1773159420988,0.00144,71330.0,71310.0,0.20610008]
[1773159421158,0.00144,71343.0,71313.0,0.0230238]
[1773159421496,1e-08,71345.0,71318.0,1.324266]
[1773159421705,1e-08,71345.0,71321.0,0.0230238]
[1773159421855,0.03,71344.0,71323.0,0.0230238]
[1773159422051,0.03,71344.0,71322.0,0.0230238]
[1773159422249,0.03,71344.0,71324.0,0.0230238]
[1773159422594,0.0004007,71348.0,71326.0,0.0230238]
[1773159422818,0.02919587,71356.0,71318.0,0.001]